bitfinex/quotes_BTCUSD_20250808
["timestamp","ask_amount","ask_price","bid_price","bid_amount"]
[1754646540077,0.15497359,116820.0,116810.0,0.47021898]
[1754646540189,0.44732889,116820.0,116810.0,0.47021898]
[1754646542554,0.47198889,116820.0,116810.0,0.47021898]
[1754646542761,0.79101419,116820.0,116810.0,0.44650898]
[1754646544163,0.79101419,116820.0,116810.0,0.31167898]
[1754646546223,0.96221775,116820.0,116810.0,0.31167898]
[1754646546423,0.96538775,116820.0,116810.0,0.11459311]
[1754646546632,0.96538775,116820.0,116810.0,0.28581132]
[1754646548349,0.83574775,116820.0,116810.0,0.28581132]
[1754646548575,0.96538775,116820.0,116810.0,0.28581132]
[1754646559343,0.96221775,116820.0,116810.0,0.28581132]
[1754646563247,0.79101419,116820.0,116810.0,0.29095132]
[1754646563658,0.79101419,116820.0,116810.0,0.31501132]
[1754646564339,0.15698359,116820.0,116810.0,0.31501132]
[1754646564546,0.79101419,116820.0,116810.0,0.31501132]
[1754646567220,0.66137419,116820.0,116810.0,0.31501132]
[1754646567425,0.79101419,116820.0,116810.0,0.31501132]
[1754646571043,0.63470419,116820.0,116810.0,0.31501132]
[1754646571250,0.44732889,116820.0,116810.0,0.31501132]
[1754646571666,0.13031359,116820.0,116810.0,0.31501132]
[1754646571871,0.44732889,116820.0,116810.0,0.31501132]
[1754646572078,0.76434419,116820.0,116810.0,0.31501132]
[1754646573552,0.76434419,116820.0,116810.0,0.34033188]
[1754646573788,0.13031359,116820.0,116810.0,0.34033188]
[1754646574011,0.76434419,116820.0,116810.0,0.34033188]
[1754646576444,0.78741419,116820.0,116810.0,0.34033188]
[1754646579507,0.95892775,116820.0,116810.0,0.28581132]
[1754646582500,0.78772419,116820.0,116810.0,0.28581132]
[1754646582700,0.15369359,116820.0,116810.0,0.28581132]
[1754646582897,0.78772419,116820.0,116810.0,0.29095132]
[1754646584385,0.95892775,116820.0,116810.0,0.29095132]
[1754646584596,0.95892775,116820.0,116810.0,0.28785132]
[1754646584956,0.95892775,116820.0,116810.0,0.28581132]
[1754646586063,0.78772419,116820.0,116810.0,0.28581132]
[1754646586496,0.95892775,116820.0,116810.0,0.28581132]
[1754646589197,0.78772419,116820.0,116810.0,0.28581132]
[1754646590196,0.78772419,116820.0,116810.0,0.28785132]
[1754646590393,0.95892775,116820.0,116810.0,0.29095132]
[1754646590952,0.95892775,116820.0,116810.0,0.28785132]
[1754646591369,0.96206775,116820.0,116810.0,0.11459311]
[1754646595729,0.95892775,116820.0,116810.0,0.11459311]
[1754646597061,0.95892775,116820.0,116810.0,0.28581132]
[1754646597899,0.31768889,116820.0,116810.0,0.31415132]
[1754646598052,0.44728889,116820.0,116810.0,0.31415132]
[1754646599773,0.00067359,116820.0,116810.0,1.03020662]
[1754646600031,0.00067359,116820.0,116810.0,0.71319132]
[1754646600237,0.31768889,116820.0,116810.0,0.71319132]
[1754646602982,0.31768889,116820.0,116810.0,0.73888432]
[1754646606706,0.44728889,116820.0,116810.0,0.73888432]
[1754646621544,0.13027359,116820.0,116810.0,0.73888432]
[1754646621768,0.44728889,116820.0,116810.0,0.73888432]
[1754646622502,0.13027359,116820.0,116810.0,0.73888432]
[1754646622791,0.00067359,116820.0,116810.0,1.05589962]
[1754646623833,0.00067359,116820.0,116810.0,0.73888432]
[1754646626326,0.00067359,116820.0,116810.0,1.05589962]
[1754646635913,0.00067359,116820.0,116810.0,0.73888432]
[1754646636819,0.31768889,116820.0,116810.0,0.73888432]
[1754646637472,0.34152889,116820.0,116810.0,0.73888432]
[1754646642315,0.31768889,116820.0,116810.0,0.73888432]
[1754646642937,0.00067359,116820.0,116810.0,0.73888432]
[1754646647881,0.00067359,116820.0,116810.0,1.05589962]
[1754646649203,0.00067359,116820.0,116810.0,1.07334864]
[1754646650185,0.00067359,116820.0,116810.0,1.39036394]
[1754646650829,0.00067359,116820.0,116810.0,1.07334864]
[1754646651035,0.00067359,116820.0,116810.0,1.07234864]
[1754646651360,0.00067359,116820.0,116810.0,1.07334864]
[1754646651834,0.00067359,116820.0,116810.0,1.07634864]
[1754646652456,0.00067359,116820.0,116810.0,1.08034864]
[1754646652849,0.00067359,116820.0,116810.0,1.39736394]
[1754646654309,0.00067359,116820.0,116810.0,1.08034864]
[1754646654557,0.00067359,116820.0,116810.0,1.39736394]
[1754646656813,0.00067359,116820.0,116810.0,1.08034864]
[1754646658816,0.00067359,116820.0,116810.0,0.76333334]
[1754646659233,0.00067359,116820.0,116810.0,1.08034864]
[1754646660244,0.00067359,116820.0,116810.0,1.86484864]
[1754646667290,0.00067359,116820.0,116810.0,1.54783334]
[1754646667502,0.02515359,116820.0,116810.0,1.86484864]
[1754646667715,0.00067359,116820.0,116810.0,1.86484864]
[1754646686758,0.00067359,116820.0,116810.0,1.54783334]
[1754646686973,0.00067359,116820.0,116810.0,1.86484864]
[1754646692169,0.02439359,116820.0,116810.0,1.86484864]
[1754646693013,0.02646359,116820.0,116810.0,1.84171864]
[1754646693642,0.02646359,116820.0,116810.0,1.86622864]
[1754646693841,0.02439359,116820.0,116810.0,1.86622864]
[1754646694046,0.00067359,116820.0,116810.0,1.86622864]
[1754646698605,0.00067359,116820.0,116810.0,1.82333252]
[1754646706925,0.00067359,116820.0,116810.0,2.14034782]
[1754646707533,0.00024,116830.0,116820.0,0.44060356]
[1754646707745,0.00028733,116830.0,116820.0,1.46885627]
[1754646707956,0.00028733,116830.0,116820.0,1.49643627]
[1754646708164,0.00028733,116830.0,116820.0,1.52035627]
[1754646709231,0.00028733,116830.0,116820.0,1.52335627]
[1754646709955,0.00028733,116830.0,116820.0,2.13575627]
[1754646711269,0.00028733,116830.0,116820.0,2.15320529]
[1754646712404,0.00028733,116830.0,116820.0,1.70870529]
[1754646713250,0.00028733,116830.0,116820.0,1.07467469]
[1754646713471,0.00028733,116830.0,116820.0,1.70870529]
[1754646714789,0.00028733,116830.0,116820.0,1.73370529]
[1754646720516,0.0002,116840.0,116830.0,0.44030157]
[1754646720730,0.0002,116840.0,116830.0,0.97637898]
[1754646720976,0.0002,116840.0,116830.0,1.00397898]
[1754646721180,0.0002,116840.0,116830.0,1.02899898]
[1754646721847,0.0002,116840.0,116830.0,1.03099898]
[1754646722136,0.0002,116840.0,116830.0,0.71598368]
[1754646722355,0.0002,116840.0,116830.0,1.03299898]
[1754646724269,0.0002,116840.0,116830.0,0.71598368]
[1754646724694,0.0002,116840.0,116830.0,1.03299898]
[1754646724904,0.02502,116840.0,116830.0,1.03299898]
[1754646725343,0.02718,116840.0,116830.0,0.42249101]
[1754646725554,0.02718,116840.0,116830.0,0.73950631]
[1754646725772,0.02718,116840.0,116830.0,0.28707101]
[1754646726013,0.3471653,116840.0,116830.0,0.28707101]
[1754646726228,0.3471653,116840.0,116830.0,0.41707101]
[1754646727514,0.03015,116840.0,116830.0,0.41707101]
[1754646728653,0.3471653,116840.0,116830.0,0.41703101]
[1754646728876,0.3471653,116840.0,116830.0,0.28707101]
[1754646729091,0.6641806,116840.0,116830.0,0.43452003]
[1754646730500,0.3471653,116840.0,116830.0,0.43452003]
[1754646730721,0.45270693,116840.0,116830.0,0.43452003]
[1754646731487,0.45270693,116840.0,116830.0,0.70392003]
[1754646732722,0.45270693,116840.0,116830.0,0.55647101]
[1754646732970,0.45270693,116840.0,116830.0,0.68651101]
[1754646735626,0.03015,116840.0,116830.0,0.68651101]
[1754646735853,0.45270693,116840.0,116830.0,0.68651101]
[1754646736336,0.03015,116840.0,116830.0,0.68651101]
[1754646736581,0.45270693,116840.0,116830.0,0.68651101]
[1754646738705,0.44973693,116840.0,116830.0,0.68651101]
[1754646739115,0.02718,116840.0,116830.0,0.68651101]
[1754646739336,0.45270693,116840.0,116830.0,0.68651101]
[1754646739577,0.02718,116840.0,116830.0,0.68867101]
[1754646739800,0.02502,116840.0,116830.0,0.71627101]
[1754646740243,0.02718,116840.0,116830.0,0.69189101]
[1754646740685,0.02718,116840.0,116830.0,0.68867101]
[1754646740939,0.02718,116840.0,116830.0,0.68651101]
[1754646742047,0.44973693,116840.0,116830.0,0.68651101]
[1754646742932,0.02718,116840.0,116830.0,0.68651101]
[1754646743145,0.44973693,116840.0,116830.0,0.68651101]
[1754646745357,0.02718,116840.0,116830.0,0.68651101]
[1754646746015,0.45272693,116840.0,116830.0,0.68651101]
[1754646746628,0.44973693,116840.0,116830.0,0.68651101]
[1754646746819,0.02718,116840.0,116830.0,0.68651101]
[1754646747081,0.44973693,116840.0,116830.0,0.68651101]
[1754646748039,0.44973693,116840.0,116830.0,0.71480101]
[1754646748240,0.44757693,116840.0,116830.0,0.71480101]
[1754646748709,0.02502,116840.0,116830.0,0.71480101]
[1754646749902,0.0002,116840.0,116830.0,0.71480101]
[1754646753916,0.0002,116840.0,116830.0,0.73225003]
[1754646754125,0.0002,116840.0,116830.0,0.80172765]
[1754646758474,0.0002,116840.0,116830.0,1.22428458]
[1754646762382,1e-08,116840.0,116830.0,1.58928458]
[1754646763377,1e-08,116840.0,116830.0,1.58728458]
[1754646764888,1e-08,116840.0,116830.0,1.58928458]
[1754646765860,1e-08,116840.0,116830.0,1.58728458]
[1754646766285,1e-08,116840.0,116830.0,1.58828458]
[1754646769619,0.0002,116850.0,116840.0,0.78057424]
[1754646769812,0.0002,116850.0,116840.0,1.44840328]
[1754646770230,0.0002,116850.0,116840.0,1.47262328]
[1754646771077,0.0002,116850.0,116840.0,1.47362328]
[1754646772093,0.0002,116850.0,116840.0,1.4910723]
[1754646773756,0.0002,116850.0,116840.0,1.4920723]
[1754646775597,0.02422,116860.0,116850.0,0.44035959]
[1754646775722,0.02422,116860.0,116850.0,0.39014171]
[1754646775929,0.02422,116860.0,116850.0,0.83959864]
[1754646776176,0.02422,116860.0,116850.0,0.86531364]
[1754646778064,0.02430102,116860.0,116850.0,0.86531364]
[1754646778496,0.00028102,116860.0,116850.0,0.86531364]
[1754646778920,0.00028102,116860.0,116850.0,0.69415404]
[1754646779156,0.00028102,116860.0,116850.0,0.70261501]
[1754646779594,0.00028102,116860.0,116850.0,0.77209263]
[1754646780745,0.00028102,116860.0,116850.0,0.77309263]
[1754646781405,0.00028102,116860.0,116850.0,1.04149263]
[1754646781804,0.00028102,116860.0,116850.0,1.04549263]
[1754646784417,0.00028102,116860.0,116850.0,0.6229357]
[1754646784854,0.02389102,116860.0,116850.0,0.6229357]
[1754646785500,0.00028102,116860.0,116850.0,0.6229357]
[1754646786574,0.00028102,116860.0,116850.0,1.04549263]
[1754646792281,0.00028102,116860.0,116850.0,1.38549263]
[1754646792720,0.00028102,116860.0,116850.0,1.59617068]
[1754646792925,0.00028102,116860.0,116850.0,1.27955319]
[1754646794715,0.00028102,116860.0,116850.0,1.38510903]
[1754646798036,0.02389102,116860.0,116850.0,1.38510903]
[1754646798943,0.02389102,116860.0,116850.0,0.89345808]
[1754646799402,0.02389102,116860.0,116850.0,1.31563141]
[1754646802520,0.00028102,116860.0,116850.0,1.31563141]
[1754646813391,0.00028102,116860.0,116850.0,1.33308043]
[1754646814089,0.00028102,116860.0,116850.0,1.77758043]
[1754646816765,0.00028102,116860.0,116850.0,1.67202823]
[1754646817597,0.00028102,116860.0,116850.0,2.01364936]
[1754646819904,0.0002,116870.0,116860.0,0.60911898]
[1754646820082,0.0002,116870.0,116860.0,1.46124335]
[1754646820394,0.0002,116870.0,116860.0,1.48862335]
[1754646821048,0.0002,116870.0,116860.0,1.51533435]
[1754646821832,0.02492,116870.0,116860.0,1.51533435]
[1754646822070,0.02492,116870.0,116860.0,1.51833435]
[1754646822891,0.02492,116870.0,116860.0,1.24821537]
[1754646823299,0.02492,116870.0,116860.0,0.61697311]
[1754646823504,0.02692,116870.0,116860.0,0.90931424]
[1754646824818,0.02692,116870.0,116860.0,0.93359424]
[1754646826287,0.02492,116870.0,116860.0,0.93359424]
[1754646828899,0.02492,116870.0,116860.0,1.20299424]
[1754646829078,0.0002,116870.0,116860.0,1.51961537]
[1754646835640,0.0002,116870.0,116860.0,0.88637311]
[1754646835845,0.0002,116870.0,116860.0,1.51961537]
[1754646838903,0.0002,116870.0,116860.0,0.88637311]
[1754646839140,0.0002,116870.0,116860.0,1.51961537]
[1754646839349,0.02511,116870.0,116860.0,1.51961537]
[1754646842595,0.02511,116870.0,116860.0,0.88637311]
[1754646842787,0.02511,116870.0,116860.0,1.51961537]
[1754646846336,0.02511,116870.0,116860.0,0.88637311]
[1754646846481,0.02511,116870.0,116860.0,1.51961537]
[1754646851720,0.02511,116870.0,116860.0,1.51797774]
[1754646853435,0.0002,116870.0,116860.0,1.51797774]
[1754646858168,0.02511,116870.0,116860.0,1.51797774]
[1754646858615,0.02511,116870.0,116860.0,1.51809774]
[1754646860011,0.02511,116870.0,116860.0,1.37262156]
[1754646860217,0.02713,116870.0,116860.0,1.66496269]
[1754646861974,0.02713,116870.0,116860.0,1.34520156]
[1754646863345,0.02713,116870.0,116860.0,1.34843156]
[1754646864187,0.02713,116870.0,116860.0,1.37286156]
[1754646868112,0.02511,116870.0,116860.0,1.68948269]
[1754646869962,0.0002,116870.0,116860.0,1.68948269]
[1754646873071,0.0002,116870.0,116860.0,1.05624043]
[1754646873270,0.0002,116870.0,116860.0,1.68948269]
[1754646874307,0.0002,116870.0,116860.0,1.05624043]
[1754646874513,0.0002,116870.0,116860.0,1.68948269]
[1754646874925,0.0002,116870.0,116860.0,1.05624043]
[1754646875129,0.0002,116870.0,116860.0,1.68948269]
[1754646881724,0.0002,116870.0,116860.0,1.05624043]
[1754646881924,0.0002,116870.0,116860.0,1.68948269]
[1754646882124,0.0002,116870.0,116860.0,1.05624043]
[1754646882439,0.0002,116870.0,116860.0,1.68948269]
[1754646893725,0.0002,116870.0,116860.0,1.05624043]
[1754646894065,0.0002,116870.0,116860.0,1.68948269]
[1754646901410,0.0002,116870.0,116860.0,1.68924269]
[1754646904258,0.0002,116870.0,116860.0,1.05600043]
[1754646904503,0.0002,116870.0,116860.0,1.68924269]
[1754646908368,0.0002,116870.0,116860.0,1.05600043]
[1754646908581,0.0002,116870.0,116860.0,1.68924269]
[1754646910279,0.0002,116870.0,116860.0,1.68936269]
[1754646910513,0.0002,116870.0,116860.0,1.05612043]
[1754646910740,0.0002,116870.0,116860.0,1.68936269]
[1754646911380,0.0002,116870.0,116860.0,1.68960269]
[1754646912441,0.0002,116870.0,116860.0,1.05636043]
[1754646912655,0.0002,116870.0,116860.0,1.68960269]
[1754646912921,0.02542,116870.0,116860.0,1.65992269]
[1754646913543,0.02542,116870.0,116860.0,1.66506269]
[1754646913691,0.02542,116870.0,116860.0,1.68919269]
[1754646918909,0.02542,116870.0,116860.0,1.05595043]
[1754646919124,0.02542,116870.0,116860.0,1.68919269]
[1754646919343,0.02338,116870.0,116860.0,1.68919269]
[1754646922606,0.0238,116870.0,116860.0,1.21506156]
[1754646922812,0.34042113,116870.0,116860.0,0.89648043]
[1754646923068,0.34042113,116870.0,116860.0,1.04404945]
[1754646923253,0.0238,116870.0,116860.0,1.36067058]
[1754646924020,0.0238,116870.0,116860.0,1.36561058]
[1754646925855,0.0238,116870.0,116860.0,1.23549058]
[1754646926069,0.0238,116870.0,116860.0,0.91886945]
[1754646926286,0.0238,116870.0,116860.0,1.36557058]
[1754646927607,0.0238,116870.0,116860.0,1.23549058]
[1754646927823,0.0238,116870.0,116860.0,1.36557058]
[1754646929119,0.0238,116870.0,116860.0,1.38883058]
[1754646929511,0.0238,116870.0,116860.0,1.25875058]
[1754646929709,0.0238,116870.0,116860.0,1.38883058]
[1754646930122,0.0238,116870.0,116860.0,1.36557058]
[1754646931552,0.0238,116870.0,116860.0,1.36059058]
[1754646933198,0.0238,116870.0,116860.0,1.36553058]
[1754646934378,0.0238,116870.0,116860.0,1.38879058]
[1754646936920,0.0238,116870.0,116860.0,1.36553058]
[1754646937527,0.0238,116870.0,116860.0,0.91392945]
[1754646937700,0.0238,116870.0,116860.0,1.02218821]
[1754646939489,0.0238,116870.0,116860.0,1.02712821]
[1754646940134,0.02338,116870.0,116860.0,1.34374934]
[1754646940350,0.0002,116870.0,116860.0,1.36700934]
[1754646948212,0.0002,116870.0,116860.0,0.73376708]
[1754646948442,0.0002,116870.0,116860.0,1.36700934]
[1754646949332,0.0002,116870.0,116860.0,0.73376708]
[1754646949542,0.0002,116870.0,116860.0,1.36700934]
[1754646950479,0.0002,116870.0,116860.0,1.36696934]
[1754646950907,0.0002,116870.0,116860.0,1.05034821]
[1754646953295,0.0002,116870.0,116860.0,1.36696934]
[1754646957830,0.0002,116870.0,116860.0,0.73372708]
[1754646958189,0.0002,116870.0,116860.0,1.36696934]
[1754646959068,0.0002,116870.0,116860.0,0.73372708]
[1754646959253,0.0002,116870.0,116860.0,1.36696934]
[1754646963792,0.0002,116870.0,116860.0,0.73372708]
[1754646964066,0.0002,116870.0,116860.0,1.36696934]
[1754646972840,0.0002,116870.0,116860.0,0.73372708]
[1754646973052,0.0002,116870.0,116860.0,1.36696934]
[1754646995587,0.0002,116870.0,116860.0,0.73372708]
[1754646995705,0.0002,116870.0,116860.0,1.36696934]
[1754647002145,0.0002,116870.0,116860.0,0.73372708]
[1754647002299,0.0002,116870.0,116860.0,1.36696934]
[1754647018084,0.0002,116870.0,116860.0,0.73372708]
[1754647018255,0.0002,116870.0,116860.0,1.36696934]
[1754647022516,0.0002,116870.0,116860.0,0.73372708]
[1754647022713,0.0002,116870.0,116860.0,1.36696934]
[1754647026569,0.0002,116870.0,116860.0,0.73372708]
[1754647026841,0.02519,116870.0,116860.0,1.36696934]
[1754647028148,0.02519,116870.0,116860.0,0.60376708]
[1754647028369,0.34386113,116870.0,116860.0,0.68823806]
[1754647028506,0.03033,116870.0,116860.0,0.68823806]
[1754647029295,0.03033,116870.0,116860.0,1.00485919]
[1754647029430,0.03033,116870.0,116860.0,0.99985919]
[1754647029629,0.03033,116870.0,116860.0,1.00085919]
[1754647030824,0.03033,116870.0,116860.0,0.68423806]
[1754647031027,0.03033,116870.0,116860.0,1.00085919]
[1754647031742,0.02724,116870.0,116860.0,1.00085919]
[1754647033352,0.02724,116870.0,116860.0,1.00185919]
[1754647033753,0.02724,116870.0,116860.0,0.41587806]
[1754647033754,0.34695113,116870.0,116860.0,0.41587806]
[1754647033906,0.51808144,116870.0,116860.0,0.41587806]
[1754647034650,0.51808144,116870.0,116860.0,0.41487806]
[1754647034857,0.51808144,116870.0,116860.0,0.28471806]
[1754647035061,0.51808144,116870.0,116860.0,0.24369311]
[1754647035360,0.51808144,116870.0,116860.0,0.41383806]
[1754647035521,0.51808144,116870.0,116860.0,0.24269311]
[1754647035722,0.52668298,116870.0,116860.0,0.41383806]
[1754647035918,0.51808144,116870.0,116860.0,0.41383806]
[1754647036540,0.34695113,116870.0,116860.0,0.41383806]
[1754647036934,0.03033,116870.0,116860.0,0.41383806]
[1754647037335,0.20146031,116870.0,116860.0,0.41383806]
[1754647037567,0.51808144,116870.0,116860.0,0.41383806]
[1754647038145,0.34695113,116870.0,116860.0,0.41383806]
[1754647038344,0.20146031,116870.0,116860.0,0.41383806]
[1754647039314,0.03033,116870.0,116860.0,0.41383806]
[1754647039557,0.02519,116870.0,116860.0,1.07496032]
[1754647039733,0.02519,116870.0,116860.0,0.75833919]
[1754647042060,0.02722,116870.0,116860.0,0.73572919]
[1754647042890,0.02722,116870.0,116860.0,0.41910806]
[1754647043094,0.02722,116870.0,116860.0,0.73572919]
[1754647043626,0.02722,116870.0,116860.0,0.41910806]
[1754647043772,0.02722,116870.0,116860.0,0.73572919]
[1754647044471,0.02722,116870.0,116860.0,0.76058919]
[1754647044671,0.02722,116870.0,116860.0,1.02998919]
[1754647047454,0.02722,116870.0,116860.0,0.89986919]
[1754647048948,0.02722,116870.0,116860.0,0.58324806]
[1754647049152,0.02722,116870.0,116860.0,0.89986919]
[1754647049676,0.02519,116870.0,116860.0,0.89986919]
[1754647050652,0.02519,116870.0,116860.0,0.58324806]
[1754647050857,0.02519,116870.0,116860.0,0.89986919]
[1754647053565,0.02519,116870.0,116860.0,1.03002919]
[1754647054181,0.0002,116870.0,116860.0,1.03002919]
[1754647056727,0.0002,116870.0,116860.0,1.34669032]
[1754647056938,0.0002,116870.0,116860.0,1.36413934]
[1754647058171,0.0002,116870.0,116860.0,1.36513934]
[1754647058590,0.0002,116870.0,116860.0,1.36613934]
[1754647063290,0.0002,116870.0,116860.0,0.73289708]
[1754647063517,0.0002,116870.0,116860.0,1.36613934]
[1754647068126,0.0002,116870.0,116860.0,1.04951821]
[1754647074828,0.02408,116870.0,116860.0,1.04951821]
[1754647075334,0.02607,116870.0,116860.0,0.69058806]
[1754647075645,0.15623,116870.0,116860.0,0.55511806]
[1754647078044,0.15623,116870.0,116860.0,0.90163919]
[1754647079518,0.15623,116870.0,116860.0,1.03175919]
[1754647081555,0.02607,116870.0,116860.0,1.03175919]
[1754647081767,0.02408,116870.0,116860.0,1.03175919]
[1754647101790,0.02408,116870.0,116860.0,0.44573806]
[1754647102002,0.83366257,116870.0,116860.0,0.28571806]
[1754647102182,0.20042031,116870.0,116860.0,0.027711]
[1754647102387,0.51704144,116870.0,116860.0,0.027711]
[1754647103493,0.51704144,116870.0,116860.0,0.002]
[1754647103694,0.83366257,116870.0,116860.0,0.002]
[1754647104294,0.51704144,116870.0,116860.0,0.001]
[1754647105339,0.51804144,116870.0,116860.0,0.001]
[1754647106295,0.17114495,116860.0,116850.0,0.025721]
[1754647106517,0.64298608,116860.0,116850.0,0.11258311]
[1754647106748,0.64608608,116860.0,116840.0,0.45207721]
[1754647106951,0.64608608,116860.0,116840.0,0.56474234]
[1754647107080,0.02315,116850.0,116840.0,0.58889234]
[1754647107281,0.02315,116850.0,116840.0,0.59088234]
[1754647108453,0.02315,116850.0,116840.0,0.59188234]
[1754647109122,0.02315,116850.0,116840.0,0.59288234]
[1754647109859,0.1943096,116850.0,116840.0,0.59288234]
[1754647111061,0.02315,116850.0,116840.0,0.59288234]
[1754647112056,0.02315,116850.0,116840.0,0.90950347]
[1754647112921,0.1943096,116850.0,116840.0,0.90950347]
[1754647113621,0.02315,116850.0,116840.0,0.90950347]
[1754647114580,0.1943096,116850.0,116840.0,0.90950347]
[1754647116758,0.32425495,116860.0,116840.0,0.90950347]
[1754647117709,0.32425495,116860.0,116840.0,0.90850347]
[1754647117943,0.32425495,116860.0,116840.0,0.90750347]
[1754647118574,0.64087608,116860.0,116840.0,0.90750347]
[1754647118947,0.64087608,116860.0,116850.0,0.00297]
[1754647119157,0.32636495,116860.0,116850.0,0.00496]
[1754647120644,0.64129742,116860.0,116850.0,0.00496]
[1754647121656,0.32467629,116860.0,116850.0,0.00199]
[1754647122009,0.64129742,116860.0,116850.0,0.00199]
[1754647122432,0.32467629,116860.0,116850.0,0.00199]
[1754647122634,0.64129742,116860.0,116850.0,0.00199]
[1754647123241,0.64129742,116860.0,116850.0,0.027712]
[1754647123445,0.64129742,116860.0,116850.0,0.025722]
[1754647123851,0.1711596,116850.0,116840.0,0.87979147]
[1754647124055,0.1711596,116850.0,116840.0,0.90750447]
[1754647125153,0.1711596,116850.0,116840.0,0.90850447]
[1754647125326,0.1711596,116850.0,116840.0,0.90950447]
[1754647130596,0.63918742,116860.0,116840.0,0.90950447]
[1754647130982,0.1711596,116850.0,116840.0,0.90950447]
[1754647131181,0.63918742,116860.0,116840.0,0.90950447]
[1754647131429,0.1711596,116850.0,116840.0,0.90950447]
[1754647131633,0.1711596,116850.0,116840.0,0.88178147]
[1754647132054,0.1711596,116850.0,116840.0,0.90750447]
[1754647133067,0.1711596,116850.0,116840.0,0.90850447]
[1754647134026,0.1711596,116850.0,116840.0,0.90950447]
[1754647134961,0.63918742,116860.0,116840.0,0.90950447]
[1754647135404,0.1711596,116850.0,116840.0,0.90950447]
[1754647135642,0.63918742,116860.0,116840.0,0.90950447]
[1754647135818,0.63918742,116860.0,116840.0,0.88278147]
[1754647136219,0.63918742,116860.0,116850.0,0.025722]
[1754647136394,0.64116742,116860.0,116850.0,0.025722]
[1754647136578,0.64116742,116860.0,116850.0,0.1968816]
[1754647136780,0.64116742,116860.0,116850.0,0.025722]
[1754647138250,0.64116742,116860.0,116840.0,0.87979147]
[1754647138429,0.64116742,116860.0,116850.0,0.025723]
[1754647138808,0.64116742,116860.0,116840.0,0.87979147]
[1754647139231,0.64116742,116860.0,116840.0,0.90551347]
[1754647139962,0.64116742,116860.0,116850.0,0.1711596]
[1754647140182,0.64116742,116860.0,116840.0,0.90551347]
[1754647141954,0.64116742,116860.0,116850.0,0.1711596]
[1754647142557,0.64116742,116860.0,116840.0,0.90551347]
[1754647144538,0.64116742,116860.0,116850.0,0.1711596]
[1754647145462,0.64116742,116860.0,116840.0,0.90551347]
[1754647145851,0.64116742,116860.0,116850.0,0.1711596]
[1754647146486,0.64116742,116860.0,116840.0,0.90551347]
[1754647147280,0.64116742,116860.0,116850.0,0.1711596]
[1754647148038,0.64116742,116860.0,116840.0,0.90551347]
[1754647148661,0.64116742,116860.0,116850.0,0.1711596]
[1754647149048,0.32454629,116860.0,116850.0,0.1711596]
[1754647149189,0.64116742,116860.0,116840.0,0.90551347]
[1754647149416,0.64116742,116860.0,116850.0,0.1711596]
[1754647150813,0.64116742,116860.0,116840.0,0.58889234]
[1754647151108,0.64116742,116860.0,116840.0,0.90551347]
[1754647151922,0.64116742,116860.0,116850.0,0.1711596]
[1754647152072,0.64116742,116860.0,116840.0,0.90551347]
[1754647153340,0.64116742,116860.0,116850.0,0.1711596]
[1754647154179,0.64116742,116860.0,116840.0,0.90551347]
[1754647156615,0.64116742,116860.0,116850.0,0.1711596]
[1754647156968,0.64116742,116860.0,116840.0,0.90551347]
[1754647157910,0.64116742,116860.0,116850.0,0.1711596]
[1754647158114,0.32454629,116860.0,116850.0,0.1711596]
[1754647158328,0.64116742,116860.0,116850.0,0.1711596]
[1754647159581,0.64116742,116860.0,116840.0,0.90551347]
[1754647161363,0.64116742,116860.0,116850.0,0.1711596]
[1754647161564,0.32454629,116860.0,116850.0,0.1711596]
[1754647161766,0.64116742,116860.0,116850.0,0.1711596]
[1754647162959,0.64116742,116860.0,116840.0,0.87979147]
[1754647163162,0.64116742,116860.0,116850.0,0.1711596]
[1754647163359,0.64116742,116860.0,116850.0,0.1968816]
[1754647163591,0.64116742,116860.0,116850.0,0.025722]
[1754647163711,0.64116742,116860.0,116850.0,0.1968816]
[1754647165828,0.64116742,116860.0,116850.0,0.025722]
[1754647167881,0.64116742,116860.0,116850.0,0.1968816]
[1754647168903,0.64116742,116860.0,116850.0,0.025722]
[1754647176942,0.32454629,116860.0,116850.0,0.025722]
[1754647177084,0.64116742,116860.0,116850.0,0.025722]
[1754647178917,0.64116742,116860.0,116850.0,0.027702]
[1754647179069,0.64116742,116860.0,116850.0,0.2018516]
[1754647180458,0.32454629,116860.0,116850.0,0.2267016]
[1754647180686,0.64116742,116860.0,116850.0,0.2018516]
[1754647181586,0.64116742,116860.0,116850.0,0.030692]
[1754647182029,0.64116742,116860.0,116850.0,0.2018516]
[1754647182878,0.64116742,116860.0,116850.0,0.030692]
[1754647183035,0.64116742,116860.0,116850.0,0.2018516]
[1754647184731,0.64116742,116860.0,116850.0,0.030692]
[1754647185375,0.64116742,116860.0,116850.0,0.2018516]
[1754647186322,0.32454629,116860.0,116850.0,0.2018516]
[1754647186559,0.64116742,116860.0,116850.0,0.2018516]
[1754647187168,0.64116742,116860.0,116850.0,0.2267016]
[1754647189534,0.32454629,116860.0,116850.0,0.2267016]
[1754647189867,0.64116742,116860.0,116850.0,0.2267016]
[1754647190078,0.64116742,116860.0,116850.0,0.055542]
[1754647190705,0.64116742,116860.0,116850.0,0.030692]
[1754647191144,0.64116742,116860.0,116850.0,0.027702]
[1754647194756,0.64116742,116860.0,116850.0,0.1988616]
[1754647195841,0.64116742,116860.0,116850.0,0.027702]
[1754647200278,0.64116742,116860.0,116850.0,0.025722]
[1754647203422,0.95778855,116860.0,116850.0,0.025722]
[1754647203697,0.96103855,116860.0,116850.0,0.025722]
[1754647205403,0.96203855,116860.0,116850.0,0.025722]
[1754647205613,0.96203855,116860.0,116850.0,0.02535534]
[1754647206015,0.96403855,116860.0,116850.0,0.02535534]
[1754647206466,0.33279629,116860.0,116850.0,0.02535534]
[1754647206674,0.96603855,116860.0,116850.0,0.02535534]
[1754647208561,0.33279629,116860.0,116850.0,0.02535534]
[1754647208766,0.64616742,116860.0,116850.0,0.02535534]
[1754647211089,0.96278855,116860.0,116850.0,0.02535534]
[1754647211736,0.64616742,116860.0,116850.0,0.02535534]
[1754647212719,0.96278855,116860.0,116850.0,0.02535534]
[1754647218209,0.96603855,116860.0,116850.0,0.02535534]
[1754647220425,0.1711596,116850.0,116840.0,8.102e-05]
[1754647220637,0.61977073,116850.0,116840.0,8.102e-05]
[1754647220843,0.64391073,116850.0,116840.0,0.02580602]
[1754647221676,0.64903073,116850.0,116840.0,0.02580602]
[1754647222093,0.3292896,116850.0,116840.0,0.02580602]
[1754647222293,0.64591073,116850.0,116840.0,0.02580602]
[1754647231171,0.64903073,116850.0,116840.0,0.02580602]
[1754647232615,0.64591073,116850.0,116840.0,0.02580602]
[1754647235937,0.3292896,116850.0,116840.0,0.02580602]
[1754647236137,0.64591073,116850.0,116840.0,0.02580602]
[1754647237868,0.3292496,116850.0,116840.0,0.05344602]
[1754647239788,0.3029996,116850.0,116840.0,0.05344602]